[Event "95th Caplin Hastings Congress"]
[Site "Hastings"]
[Date "2019.12.29"]
[Round "2.40"]
[White "Patrick, Chaski"]
[Black "Kumar, Soham"]
[Result "1-0"]
[ECO "B95"]
[WhiteElo "2131"]
[BlackElo "1512"]
[Annotator "NA"]
[PlyCount "65"]
[EventDate "2019.12.28"]
[EventType "swiss"]
[EventCountry "ENG"]
[SourceTitle "playchess.com"]
[Source "ChessBase"]
[SourceQuality "1"]
[TimeControl "40/6600+30:3000+30"]

1. e4 {[%emt 0:09:32]} c5 {[%emt 0:09:35]} 2. Nf3 {[%emt 0:00:04]} d6 {[%emt 0:00:06]} 3. d4 {[%emt 0:00:04]} cxd4 {[%emt 0:00:05]} 4. Nxd4 {[%emt 0:00:05]} Nf6 {[%emt 0:00:09]} 5. Nc3 {[%emt 0:00:04]} a6 {[%emt 0:00:07]} 6. Bg5 {[%emt 0:00:11]} e6 {[%emt 0:00:06]} 7. Qf3 {[%emt 0:00:04]} Be7 {[%emt 0:00:11]} 8. O-O-O {[%emt 0:00:11]} Nbd7 {[%emt 0:00:16]} 9. Be2 {[%emt 0:00:08]} O-O {[%emt 0:00:31]} 10. Qg3 {[%emt 0:00:50]} Re8 {[%emt 0:16:50]} 11. f4 {[%emt 0:03:11]} Qc7 {[%emt 0:02:08]} 12. Bf3 {[%emt 0:03:46]} Rb8 {[%emt 0:02:22]} 13. Rhe1 {[%emt 0:07:59]} b5 {[%emt 0:14:20]} 14. e5 {[%emt 0:04:54]} b4 {[%emt 0:04:23]} 15. Bxf6 {[%emt 0:00:37]} Nxf6 {[%emt 0:05:21]} 16. exf6 {[%emt 0:00:15]} Bxf6 {[%emt 0:00:06]} 17. Ne4 {[%emt 0:00:10]} Be7 {[%emt 0:06:13]} 18. f5 {[%emt 0:00:20]} e5 {[%emt 0:05:45]} 19. f6 {[%emt 0:00:21]} Bf8 {[%emt 0:00:48]} 20. fxg7 {[%emt 0:00:15]} Be7 {[%emt 0:01:12]} 21. Nc6 {[%emt 0:01:17]} Rb6 {[%emt 0:01:54]} 22. Nxe7+ {[%emt 0:02:09]} Qxe7 {[%emt 0:00:05]} 23. Qf2 {[%emt 0:01:40]} Rb8 {[%emt 0:01:13]} 24. Rxd6 {[%emt 0:00:47]} Kxg7 {[%emt 0:07:59]} 25. Nf6 {[%emt 0:02:38]} Rh8 {[%emt 0:00:27]} 26. Qg3+ {[%emt 0:00:15]} Kf8 {[%emt 0:00:10]} 27. Rxe5 {[%emt 0:00:21]} Qxf6 {[%emt 0:01:49]} 28. Rxf6 {[%emt 0:00:12]} Rb5 {[%emt 0:00:21]} 29. Rxf7+ {[%emt 0:02:46]} Kxf7 {[%emt 0:00:13]} 30. Qf4+ {[%emt 0:00:04]} Kg7 {[%emt 0:00:33]} 31. Qg5+ {[%emt 0:00:09]} Kf7 {[%emt 0:00:09]} 32. Bh5+ {[%emt 0:00:05]} Kf8 {[%emt 0:00:09]} 33. Re8# {[%emt 0:00:08]} 1-0

[Event "95th Caplin Hastings Congress"]
[Site "Hastings"]
[Date "2019.12.29"]
[Round "2.41"]
[White "Akeya-Price, Robert"]
[Black "Persson, Andreas"]
[Result "1-0"]
[ECO "E05"]
[WhiteElo "1880"]
[BlackElo "2112"]
[Annotator "NA"]
[PlyCount "97"]
[EventDate "2019.12.28"]
[EventType "swiss"]
[EventCountry "ENG"]
[SourceTitle "playchess.com"]
[Source "ChessBase"]
[SourceQuality "1"]
[TimeControl "40/6600+30:3000+30"]

1. d4 {[%emt 0:09:33]} Nf6 {[%emt 0:12:23]} 2. c4 {[%emt 0:00:06]} e6 {[%emt 0:00:33]} 3. Nf3 {[%emt 0:00:11]} d5 {[%emt 0:00:50]} 4. g3 {[%emt 0:00:16]} Be7 {[%emt 0:00:47]} 5. Bg2 {[%emt 0:00:10]} O-O {[%emt 0:00:41]} 6. O-O {[%emt 0:00:22]} dxc4 {[%emt 0:00:33]} 7. Qc2 {[%emt 0:00:24]} a6 {[%emt 0:05:21]} 8. a4 {[%emt 0:00:33]} Bd7 {[%emt 0:00:29]} 9. Qxc4 {[%emt 0:00:54]} Bc6 {[%emt 0:00:21]} 10. Bf4 {[%emt 0:03:46]} Bd6 {[%emt 0:02:11]} 11. Nc3 {[%emt 0:02:04]} Bxf4 {[%emt 0:02:43]} 12. gxf4 {[%emt 0:00:03]} a5 {[%emt 0:01:14]} 13. Ne5 {[%emt 0:09:57]} Bxg2 {[%emt 0:02:41]} 14. Kxg2 {[%emt 0:00:07]} Na6 {[%emt 0:02:49]} 15. e3 {[%emt 0:04:04]} c6 {[%emt 0:03:11]} 16. Rfd1 {[%emt 0:12:35]} Qe7 {[%emt 0:05:31]} 17. Rac1 {[%emt 0:03:56]} Rfd8 {[%emt 0:03:36]} 18. Qb3 {[%emt 0:06:17]} Nb4 {[%emt 0:05:51]} 19. Na2 {[%emt 0:03:39]} Nbd5 {[%emt 0:03:01]} 20. Qc2 {[%emt 0:08:23]} Ne8 {[%emt 0:04:50]} 21. Qd2 {[%emt 0:02:59]} Nd6 {[%emt 0:03:11]} 22. Qe2 {[%emt 0:16:56]} Nf5 {[%emt 0:07:44]} 23. Kh1 {[%emt 0:03:24]} Qh4 {[%emt 0:02:35]} 24. Rg1 {[%emt 0:05:44]} f6 {[%emt 0:15:52]} 25. Nd3 {[%emt 0:03:14]} Rd7 {[%emt 0:01:38]} 26. Qg4 {[%emt 0:08:05]} Qxg4 {[%emt 0:01:58]} 27. Rxg4 {[%emt 0:00:03]} Ndxe3 {[%emt 0:04:04]} 28. fxe3 {[%emt 0:00:54]} Nxe3 {[%emt 0:00:05]} 29. Nc5 {[%emt 0:04:42]} Rd5 {[%emt 0:04:51]} 30. Rg3 {[%emt 0:02:09]} Nf5 {[%emt 0:00:05]} 31. Rd3 {[%emt 0:00:33]} Nxd4 {[%emt 0:01:11]} 32. Nxb7 {[%emt 0:00:52]} Rb8 {[%emt 0:03:42]} 33. Nc3 {[%emt 0:05:06]} Nb3 {[%emt 0:02:00]} 34. Nxd5 {[%emt 0:00:17]} Nxc1 {[%emt 0:00:13]} 35. Ne7+ {[%emt 0:00:06]} Kf8 {[%emt 0:01:25]} 36. Rd7 {[%emt 0:01:51]} Ne2 {[%emt 0:01:35]} 37. Nxc6 {[%emt 0:00:00]} Rc8 {[%emt 0:00:18]} 38. Nbxa5 {[%emt 0:00:44]} Nxf4 {[%emt 0:00:40]} 39. b4 {[%emt 0:00:25]} Nd5 {[%emt 0:01:29]} 40. b5 {[%emt 0:02:47]} Nb6 {[%emt 0:00:09]} 41. Rd4 {[%emt 0:02:21]} e5 {[%emt 0:00:48]} 42. Rh4 {[%emt 0:03:47]} Ra8 {[%emt 0:06:44]} 43. Rxh7 {[%emt 0:01:32]} Kf7 {[%emt 0:00:13]} 44. Rh4 {[%emt 0:00:12]} Kg6 {[%emt 0:06:16]} 45. Kg2 {[%emt 0:04:29]} Kg5 {[%emt 0:01:09]} 46. Rb4 {[%emt 0:03:28]} Nd5 {[%emt 0:04:25]} 47. b6 {[%emt 0:08:52]} Nxb4 {[%emt 0:01:40]} 48. b7 {[%emt 0:01:06]} Rh8 {[%emt 0:01:00]} 49. Nxb4 {[%emt 0:00:00]} 1-0

[Event "95th Caplin Hastings Congress"]
[Site "Hastings"]
[Date "2019.12.29"]
[Round "2.42"]
[White "Pekin, Tolgay"]
[Black "Kumar, Sanjit S"]
[Result "1-0"]
[ECO "D02"]
[WhiteElo "2080"]
[BlackElo "1501"]
[Annotator "NA"]
[PlyCount "127"]
[EventDate "2019.12.28"]
[EventType "swiss"]
[EventCountry "ENG"]
[SourceTitle "playchess.com"]
[Source "ChessBase"]
[SourceQuality "1"]
[TimeControl "40/6600+30:3000+30"]

1. d4 {[%emt 0:09:33]} d5 {[%emt 0:09:40]} 2. Bf4 {[%emt 0:00:06]} Nf6 {[%emt 0:00:15]} 3. e3 {[%emt 0:00:14]} e6 {[%emt 0:00:16]} 4. Nd2 {[%emt 0:00:13]} c5 {[%emt 0:00:28]} 5. c3 {[%emt 0:00:07]} Nc6 {[%emt 0:00:14]} 6. Bd3 {[%emt 0:00:16]} Be7 {[%emt 0:00:19]} 7. Ngf3 {[%emt 0:00:22]} O-O {[%emt 0:00:36]} 8. Ne5 {[%emt 0:01:21]} h6 {[%emt 0:03:43]} 9. h4 {[%emt 0:18:57]} Nxe5 {[%emt 0:05:38]} 10. dxe5 Nd7 {[%emt 0:01:17]} 11. Qh5 {[%emt 0:05:10]} f5 {[%emt 0:03:13]} 12. Qg6 {[%emt 0:02:17]} Qe8 {[%emt 0:01:07]} 13. Qxe6+ {[%emt 0:00:21]} Qf7 {[%emt 0:00:27]} 14. Qxf7+ {[%emt 0:11:32]} Kxf7 {[%emt 0:00:10]} 15. Nf3 {[%emt 0:09:55]} Ke6 {[%emt 0:02:52]} 16. c4 {[%emt 0:02:58]} Nb6 {[%emt 0:01:56]} 17. cxd5+ {[%emt 0:00:55]} Nxd5 {[%emt 0:00:11]} 18. Bc4 {[%emt 0:01:28]} b6 {[%emt 0:00:46]} 19. O-O-O {[%emt 0:01:10]} Bb7 {[%emt 0:00:10]} 20. Ng1 {[%emt 0:03:01]} a6 {[%emt 0:01:25]} 21. Ne2 {[%emt 0:04:33]} b5 {[%emt 0:01:49]} 22. Bb3 {[%emt 0:00:21]} c4 {[%emt 0:00:29]} 23. Nd4+ {[%emt 0:00:45]} Kf7 {[%emt 0:04:13]} 24. Bc2 {[%emt 0:01:45]} Nxf4 {[%emt 0:09:34]} 25. exf4 {[%emt 0:00:16]} Bxg2 {[%emt 0:00:43]} 26. Rhg1 {[%emt 0:01:42]} Be4 {[%emt 0:01:41]} 27. Bxe4 {[%emt 0:01:10]} fxe4 {[%emt 0:00:08]} 28. Nf5 {[%emt 0:01:16]} g6 {[%emt 0:00:37]} 29. Nd6+ {[%emt 0:10:40]} Bxd6 {[%emt 0:11:33]} 30. Rxd6 {[%emt 0:01:59]} Rg8 {[%emt 0:03:16]} 31. Rgd1 {[%emt 0:10:19]} Ra7 {[%emt 0:19:26]} 32. Kd2 {[%emt 0:01:38]} Re8 {[%emt 0:01:05]} 33. Ke3 {[%emt 0:03:34]} Ree7 {[%emt 0:02:32]} 34. Kxe4 {[%emt 0:00:32]} a5 {[%emt 0:01:40]} 35. Rf6+ {[%emt 0:02:03]} Kg7 {[%emt 0:00:08]} 36. Rdd6 {[%emt 0:00:28]} g5 {[%emt 0:00:58]} 37. hxg5 {[%emt 0:00:19]} hxg5 {[%emt 0:00:08]} 38. fxg5 {[%emt 0:00:36]} b4 {[%emt 0:00:26]} 39. Rc6 {[%emt 0:00:39]} Rac7 {[%emt 0:00:23]} 40. f4 {[%emt 0:02:16]} c3 {[%emt 0:00:20]} 41. bxc3 {[%emt 0:50:07]} bxc3 {[%emt 0:50:05]} 42. Kd3 {[%emt 0:00:11]} Rxc6 {[%emt 0:00:19]} 43. Rxc6 {[%emt 0:00:10]} Rf7 {[%emt 0:00:04]} 44. Rf6 {[%emt 0:00:45]} Rc7 {[%emt 0:00:07]} 45. Kc2 {[%emt 0:00:04]} Kg8 {[%emt 0:00:40]} 46. f5 {[%emt 0:00:58]} Kg7 {[%emt 0:00:17]} 47. e6 {[%emt 0:00:28]} Kg8 {[%emt 0:00:07]} 48. Rf7 {[%emt 0:00:53]} Rxf7 {[%emt 0:00:07]} 49. exf7+ {[%emt 0:00:05]} Kxf7 {[%emt 0:00:05]} 50. Kxc3 {[%emt 0:00:03]} Kg7 {[%emt 0:00:17]} 51. Kb3 {[%emt 0:00:12]} Kf7 {[%emt 0:00:05]} 52. Ka4 {[%emt 0:00:03]} Kg7 {[%emt 0:00:04]} 53. Kxa5 {[%emt 0:00:04]} Kf7 {[%emt 0:00:03]} 54. Kb5 {[%emt 0:00:05]} Kg7 {[%emt 0:00:03]} 55. a4 {[%emt 0:00:03]} Kf7 {[%emt 0:00:02]} 56. a5 {[%emt 0:00:05]} Kg7 {[%emt 0:00:02]} 57. a6 {[%emt 0:00:05]} Kf7 {[%emt 0:00:02]} 58. a7 {[%emt 0:00:09]} Kg7 {[%emt 0:00:02]} 59. a8=Q {[%emt 0:00:08]} Kf7 {[%emt 0:00:03]} 60. Qa7+ {[%emt 0:00:11]} Ke8 {[%emt 0:00:06]} 61. g6 {[%emt 0:00:06]} Kd8 {[%emt 0:00:03]} 62. Kc6 {[%emt 0:00:10]} Ke8 {[%emt 0:00:09]} 63. Qf7+ {[%emt 0:00:07]} Kd8 {[%emt 0:00:07]} 64. Qd7# {[%emt 0:00:33]} 1-0

[Event "95th Caplin Hastings Congress"]
[Site "Hastings"]
[Date "2019.12.29"]
[Round "2.43"]
[White "Okhai, Shabir"]
[Black "Flynn, David"]
[Result "1-0"]
[ECO "C18"]
[WhiteElo "2103"]
[BlackElo "1853"]
[Annotator "NA"]
[PlyCount "73"]
[EventDate "2019.12.28"]
[EventType "swiss"]
[EventCountry "ENG"]
[SourceTitle "playchess.com"]
[Source "ChessBase"]
[SourceQuality "1"]
[TimeControl "40/6600+30:3000+30"]

1. e4 {[%emt 0:09:33]} e6 {[%emt 0:10:59]} 2. d4 {[%emt 0:00:08]} d5 {[%emt 0:00:21]} 3. Nc3 {[%emt 0:00:41]} Bb4 {[%emt 0:00:06]} 4. e5 {[%emt 0:00:09]} c5 {[%emt 0:00:25]} 5. a3 {[%emt 0:00:07]} Bxc3+ {[%emt 0:00:04]} 6. bxc3 {[%emt 0:00:05]} Qc7 {[%emt 0:00:51]} 7. Bd3 {[%emt 0:04:17]} b6 {[%emt 0:10:25]} 8. Qg4 {[%emt 0:10:41]} f5 {[%emt 0:00:20]} 9. Qh5+ {[%emt 0:01:10]} Qf7 {[%emt 0:13:08]} 10. Qf3 {[%emt 0:10:34]} Ne7 {[%emt 0:02:27]} 11. Be3 {[%emt 0:11:19]} Nec6 {[%emt 0:07:50]} 12. Qf4 {[%emt 0:05:16]} cxd4 {[%emt 0:02:05]} 13. cxd4 {[%emt 0:00:33]} Ba6 {[%emt 0:00:42]} 14. Bxa6 {[%emt 0:03:30]} Nxa6 {[%emt 0:00:04]} 15. Nf3 {[%emt 0:08:14]} Na5 {[%emt 0:08:16]} 16. Ng5 {[%emt 0:09:01]} Qg6 {[%emt 0:18:36]} 17. h4 {[%emt 0:03:11]} h6 {[%emt 0:04:46]} 18. Nf3 {[%emt 0:00:49]} Rc8 {[%emt 0:07:03]} 19. Ra2 {[%emt 0:03:28]} Qh5 {[%emt 0:09:57]} 20. Rh3 {[%emt 0:03:53]} Kd7 {[%emt 0:08:55]} 21. Bd2 {[%emt 0:05:50]} Nc4 {[%emt 0:00:42]} 22. Bc1 {[%emt 0:03:52]} Nb8 {[%emt 0:03:27]} 23. Nd2 {[%emt 0:07:39]} Nxd2 {[%emt 0:00:46]} 24. Bxd2 {[%emt 0:00:43]} Rc4 {[%emt 0:00:47]} 25. f3 {[%emt 0:03:12]} Nc6 {[%emt 0:01:27]} 26. c3 {[%emt 0:04:07]} Qf7 {[%emt 0:00:18]} 27. g4 {[%emt 0:01:18]} Ne7 {[%emt 0:03:22]} 28. h5 {[%emt 0:01:40]} Rf8 {[%emt 0:01:10]} 29. g5 {[%emt 0:00:46]} Ng8 {[%emt 0:00:45]} 30. Ke2 {[%emt 0:02:53]} Qe7 {[%emt 0:01:23]} 31. Rg3 {[%emt 0:01:20]} Qf7 {[%emt 0:02:10]} 32. gxh6 {[%emt 0:00:56]} Nxh6 {[%emt 0:01:08]} 33. Rg6 {[%emt 0:00:56]} Rg8 {[%emt 0:00:51]} 34. Ra1 {[%emt 0:01:24]} Rc7 {[%emt 0:00:09]} 35. Rag1 {[%emt 0:00:14]} Ke8 {[%emt 0:00:58]} 36. Qxh6 {[%emt 0:01:00]} gxh6 {[%emt 0:00:21]} 37. Rxg8+ {[%emt 0:00:05]} 1-0

[Event "95th Caplin Hastings Congress"]
[Site "Hastings"]
[Date "2019.12.29"]
[Round "2.44"]
[White "Butt, Laurence"]
[Black "Willson, Ollie"]
[Result "0-1"]
[ECO "A03"]
[WhiteElo "1694"]
[BlackElo "2082"]
[Annotator "NA"]
[PlyCount "118"]
[EventDate "2019.12.28"]
[EventType "swiss"]
[EventCountry "ENG"]
[SourceTitle "playchess.com"]
[Source "ChessBase"]
[SourceQuality "1"]
[TimeControl "40/6600+30:3000+30"]

1. d4 {[%emt 0:10:56]} Nf6 {[%emt 0:09:36]} 2. e3 {[%emt 0:00:24]} d5 {[%emt 0:00:18]} 3. f4 {[%emt 0:00:33]} c5 {[%emt 0:00:06]} 4. Nf3 {[%emt 0:00:09]} Bg4 {[%emt 0:00:14]} 5. Be2 {[%emt 0:00:20]} Nc6 {[%emt 0:00:36]} 6. O-O {[%emt 0:00:15]} e6 {[%emt 0:00:10]} 7. h3 {[%emt 0:00:52]} Bxf3 {[%emt 0:03:41]} 8. Bxf3 {[%emt 0:00:09]} Qc7 {[%emt 0:01:00]} 9. c3 {[%emt 0:01:32]} cxd4 {[%emt 0:01:09]} 10. exd4 {[%emt 0:03:09]} Bd6 {[%emt 0:00:24]} 11. Qe1 {[%emt 0:02:02]} O-O {[%emt 0:06:16]} 12. Na3 {[%emt 0:00:56]} a6 {[%emt 0:03:17]} 13. Nc2 {[%emt 0:01:36]} b5 {[%emt 0:04:54]} 14. a3 {[%emt 0:00:14]} Na5 {[%emt 0:06:39]} 15. g3 {[%emt 0:02:04]} Nc4 {[%emt 0:06:04]} 16. Kg2 {[%emt 0:01:33]} a5 {[%emt 0:05:20]} 17. Ne3 {[%emt 0:00:41]} Rab8 {[%emt 0:03:44]} 18. Nxc4 {[%emt 0:00:52]} Qxc4 {[%emt 0:12:17]} 19. Be2 {[%emt 0:01:50]} Qc6 {[%emt 0:02:32]} 20. Bd3 {[%emt 0:03:12]} b4 {[%emt 0:04:26]} 21. axb4 {[%emt 0:01:59]} axb4 {[%emt 0:00:11]} 22. Bd2 {[%emt 0:00:14]} bxc3 {[%emt 0:05:47]} 23. Bxc3 {[%emt 0:01:20]} Rb6 {[%emt 0:08:13]} 24. Kh2 {[%emt 0:15:40]} g6 {[%emt 0:03:53]} 25. Qd2 {[%emt 0:06:13]} Rfb8 {[%emt 0:03:24]} 26. Rac1 {[%emt 0:11:34]} Qb7 {[%emt 0:04:56]} 27. Rc2 {[%emt 0:01:28]} Ra8 {[%emt 0:06:12]} 28. Kg1 {[%emt 0:03:35]} Ra2 {[%emt 0:07:34]} 29. g4 {[%emt 0:02:34]} Ne4 {[%emt 0:05:49]} 30. Bxe4 {[%emt 0:00:18]} dxe4 {[%emt 0:00:04]} 31. f5 {[%emt 0:00:33]} Bf8 {[%emt 0:02:31]} 32. Qg5 {[%emt 0:01:46]} exf5 {[%emt 0:00:45]} 33. gxf5 {[%emt 0:00:33]} Qd5 {[%emt 0:00:24]} 34. h4 {[%emt 0:00:46]} Ra8 {[%emt 0:01:51]} 35. h5 {[%emt 0:00:27]} Bg7 {[%emt 0:01:00]} 36. Rd2 {[%emt 0:03:10]} h6 {[%emt 0:00:47]} 37. Qg3 {[%emt 0:02:58]} g5 {[%emt 0:00:33]} 38. Qe3 {[%emt 0:01:02]} Rf6 {[%emt 0:01:10]} 39. Rdf2 {[%emt 0:02:21]} Bf8 {[%emt 0:00:17]} 40. Kg2 {[%emt 0:02:27]} Bd6 {[%emt 0:01:08]} 41. Kh3 {[%emt 0:52:25]} Kh7 {[%emt 0:07:13]} 42. Re2 {[%emt 0:00:00]} Rxf5 {[%emt 0:09:40]} 43. Rxf5 {[%emt 0:00:00]} Qxf5+ {[%emt 0:00:08]} 44. Kg2 {[%emt 0:00:00]} Qg4+ {[%emt 0:04:09]} 45. Kf1 {[%emt 0:00:00]} f5 {[%emt 0:07:02]} 46. d5 {[%emt 0:00:00]} Ra1+ {[%emt 0:19:21]} 47. Re1 {[%emt 0:00:00]} Rxe1+ {[%emt 0:00:59]} 48. Bxe1 {[%emt 0:00:00]} Qxh5 {[%emt 0:02:03]} 49. Qa7+ {[%emt 0:00:00]} Kg6 {[%emt 0:00:09]} 50. Qb6 {[%emt 0:00:00]} Qh1+ {[%emt 0:00:40]} 51. Kf2 {[%emt 0:00:00]} Qh2+ {[%emt 0:00:05]} 52. Kf1 {[%emt 0:00:00]} Kh5 {[%emt 0:00:10]} 53. Qd4 {[%emt 0:02:36]} Qh1+ {[%emt 0:01:43]} 54. Qg1 {[%emt 0:01:08]} Qf3+ {[%emt 0:00:21]} 55. Qf2 {[%emt 0:00:36]} Kg4 {[%emt 0:00:35]} 56. Qxf3+ {[%emt 0:02:25]} Kxf3 {[%emt 0:00:02]} 57. b4 {[%emt 0:00:08]} e3 {[%emt 0:02:01]} 58. b5 {[%emt 0:00:22]} Bh2 {[%emt 0:00:35]} 59. Bf2 {[%emt 0:02:09]} exf2 {[%emt 0:00:27]} 0-1

[Event "95th Caplin Hastings Congress"]
[Site "Hastings"]
[Date "2019.12.29"]
[Round "2.45"]
[White "Elwin, Adrian G"]
[Black "Khoo-Thwe, Louis"]
[Result "1-0"]
[ECO "E51"]
[WhiteElo "1986"]
[BlackElo "1690"]
[Annotator "NA"]
[PlyCount "73"]
[EventDate "2019.12.28"]
[EventType "swiss"]
[EventCountry "ENG"]
[SourceTitle "playchess.com"]
[Source "ChessBase"]
[SourceQuality "1"]
[TimeControl "40/6600+30:3000+30"]

1. d4 {[%emt 0:09:34]} Nf6 {[%emt 0:09:36]} 2. c4 {[%emt 0:00:20]} e6 {[%emt 0:00:05]} 3. Nf3 {[%emt 0:00:58]} d5 {[%emt 0:00:23]} 4. Nc3 {[%emt 0:00:49]} Bb4 {[%emt 0:00:21]} 5. Bd2 {[%emt 0:05:47]} O-O {[%emt 0:03:41]} 6. e3 {[%emt 0:01:08]} a6 {[%emt 0:00:32]} 7. a3 {[%emt 0:01:27]} Bxc3 {[%emt 0:00:19]} 8. Bxc3 {[%emt 0:00:17]} Nbd7 {[%emt 0:01:14]} 9. Bd3 {[%emt 0:06:36]} dxc4 {[%emt 0:00:53]} 10. Bxc4 {[%emt 0:00:03]} b5 {[%emt 0:00:09]} 11. Bd3 {[%emt 0:00:12]} c5 {[%emt 0:02:37]} 12. Rc1 {[%emt 0:06:15]} c4 {[%emt 0:01:59]} 13. Bb1 {[%emt 0:01:26]} Bb7 {[%emt 0:00:17]} 14. Qe2 {[%emt 0:01:12]} Ne4 {[%emt 0:01:22]} 15. Bb4 {[%emt 0:12:38]} Re8 {[%emt 0:00:17]} 16. Nd2 {[%emt 0:00:28]} Nxd2 {[%emt 0:04:43]} 17. Bxd2 {[%emt 0:00:48]} e5 {[%emt 0:02:23]} 18. Bc3 {[%emt 0:01:28]} exd4 {[%emt 0:01:58]} 19. Bxd4 {[%emt 0:00:12]} Qh4 {[%emt 0:00:10]} 20. Rd1 {[%emt 0:08:44]} Bxg2 {[%emt 0:08:06]} 21. Rg1 {[%emt 0:00:59]} Qxh2 {[%emt 0:00:08]} 22. Kd2 {[%emt 0:00:43]} Ne5 {[%emt 0:00:30]} 23. Bxe5 {[%emt 0:06:16]} Qxe5 {[%emt 0:01:11]} 24. Ke1 {[%emt 0:04:53]} Be4 {[%emt 0:04:17]} 25. f4 {[%emt 0:00:52]} Qf6 {[%emt 0:00:45]} 26. Bxe4 {[%emt 0:04:44]} Rxe4 {[%emt 0:00:08]} 27. Rg3 {[%emt 0:00:14]} Qh4 {[%emt 0:03:03]} 28. Qf2 {[%emt 0:00:23]} Rae8 {[%emt 0:00:27]} 29. Rxg7+ {[%emt 0:00:24]} Kxg7 {[%emt 0:00:07]} 30. Qxh4 {[%emt 0:00:09]} Rxe3+ {[%emt 0:00:04]} 31. Kf1 {[%emt 0:00:15]} Rf3+ {[%emt 0:05:05]} 32. Kg2 {[%emt 0:00:56]} Rb3 {[%emt 0:00:13]} 33. Qg5+ {[%emt 0:00:21]} Kh8 {[%emt 0:00:14]} 34. Qf6+ {[%emt 0:02:42]} Kg8 {[%emt 0:00:08]} 35. Rg1 {[%emt 0:02:50]} Rbe3 {[%emt 0:05:55]} 36. Kf2+ {[%emt 0:00:09]} Kf8 {[%emt 0:00:07]} 37. Qg7+ {[%emt 0:01:27]} 1-0

[Event "95th Caplin Hastings Congress"]
[Site "Hastings"]
[Date "2019.12.29"]
[Round "2.46"]
[White "Damodaran, Patrick"]
[Black "McNally, Richard J E"]
[Result "0-1"]
[ECO "A11"]
[WhiteElo "1388"]
[BlackElo "1967"]
[Annotator "NA"]
[PlyCount "98"]
[EventDate "2019.12.28"]
[EventType "swiss"]
[EventCountry "ENG"]
[SourceTitle "playchess.com"]
[Source "ChessBase"]
[SourceQuality "1"]
[TimeControl "40/6600+30:3000+30"]

1. c4 {[%emt 0:11:40]} e5 {[%emt 0:10:11]} 2. g3 {[%emt 0:02:44]} c6 {[%emt 0:00:18]} 3. Bg2 {[%emt 0:03:30]} d5 {[%emt 0:00:34]} 4. cxd5 {[%emt 0:03:45]} cxd5 {[%emt 0:00:21]} 5. d3 {[%emt 0:02:34]} Nf6 {[%emt 0:02:57]} 6. Nf3 {[%emt 0:04:00]} Nc6 {[%emt 0:00:56]} 7. O-O {[%emt 0:01:46]} Be7 {[%emt 0:00:48]} 8. Bg5 {[%emt 0:01:30]} O-O {[%emt 0:02:25]} 9. Nc3 {[%emt 0:01:16]} d4 {[%emt 0:06:23]} 10. Bxf6 {[%emt 0:07:30]} Bxf6 {[%emt 0:01:01]} 11. Ne4 {[%emt 0:01:27]} Be7 {[%emt 0:01:08]} 12. Rc1 {[%emt 0:02:26]} Qb6 {[%emt 0:06:24]} 13. Rb1 {[%emt 0:06:39]} Be6 {[%emt 0:01:19]} 14. b3 {[%emt 0:06:26]} f6 {[%emt 0:00:44]} 15. Ned2 {[%emt 0:03:05]} Nb4 {[%emt 0:03:19]} 16. a3 {[%emt 0:06:42]} Nd5 {[%emt 0:00:42]} 17. Nc4 {[%emt 0:03:37]} Qa6 {[%emt 0:00:43]} 18. Qc2 {[%emt 0:01:55]} b5 {[%emt 0:02:29]} 19. Nb2 {[%emt 0:02:12]} Rac8 {[%emt 0:02:54]} 20. Qd2 {[%emt 0:00:57]} Qxa3 {[%emt 0:01:00]} 21. Nd1 {[%emt 0:02:43]} Bb4 {[%emt 0:07:35]} 22. Qb2 {[%emt 0:01:53]} Nc3 {[%emt 0:02:31]} 23. Kh1 {[%emt 0:03:47]} Nxb1 {[%emt 0:02:40]} 24. Qxb1 {[%emt 0:02:20]} Rc1 {[%emt 0:01:30]} 25. Qb2 {[%emt 0:01:56]} Rxd1 {[%emt 0:00:11]} 26. Qxa3 {[%emt 0:02:25]} Rxf1+ {[%emt 0:00:16]} 27. Bxf1 {[%emt 0:01:07]} Bxa3 {[%emt 0:00:21]} 28. h4 {[%emt 0:01:38]} Bxb3 {[%emt 0:00:12]} 29. Bh3 {[%emt 0:04:00]} Bd5 {[%emt 0:00:30]} 30. Kh2 {[%emt 0:01:18]} Bxf3 {[%emt 0:00:36]} 31. Be6+ {[%emt 0:03:18]} Kh8 {[%emt 0:00:03]} 32. exf3 {[%emt 0:01:21]} Rb8 {[%emt 0:00:05]} 33. Bb3 {[%emt 0:02:28]} a5 {[%emt 0:00:12]} 34. f4 {[%emt 0:01:25]} a4 {[%emt 0:00:19]} 35. Ba2 {[%emt 0:02:50]} b4 {[%emt 0:00:06]} 36. fxe5 {[%emt 0:02:10]} fxe5 {[%emt 0:00:06]} 37. f4 {[%emt 0:02:40]} exf4 {[%emt 0:00:06]} 38. gxf4 {[%emt 0:01:02]} b3 {[%emt 0:00:15]} 39. Bb1 {[%emt 0:01:25]} Rc8 {[%emt 0:00:23]} 40. f5 {[%emt 0:01:10]} Rc1 {[%emt 0:00:08]} 41. f6 {[%emt 0:50:54]} gxf6 {[%emt 0:50:05]} 42. h5 {[%emt 0:00:53]} Rxb1 {[%emt 0:00:05]} 43. h6 {[%emt 0:01:37]} Rf1 {[%emt 0:00:17]} 44. Kg2 {[%emt 0:01:39]} Rf4 {[%emt 0:00:10]} 45. Kg3 {[%emt 0:01:38]} Bd6 {[%emt 0:00:05]} 46. Kh3 {[%emt 0:01:31]} b2 {[%emt 0:00:06]} 47. Kg2 {[%emt 0:02:03]} b1=Q {[%emt 0:00:07]} 48. Kh2 {[%emt 0:01:18]} Rf3+ {[%emt 0:00:18]} 49. Kg2 {[%emt 0:03:30]} Qf1# {[%emt 0:00:07]} 0-1

[Event "95th Caplin Hastings Congress"]
[Site "Hastings"]
[Date "2019.12.29"]
[Round "2.47"]
[White "Fryer, David W"]
[Black "Zheng, Harry Z"]
[Result "1-0"]
[ECO "C29"]
[WhiteElo "1913"]
[BlackElo "1705"]
[Annotator "NA"]
[PlyCount "47"]
[EventDate "2019.12.28"]
[EventType "swiss"]
[EventCountry "ENG"]
[SourceTitle "playchess.com"]
[Source "ChessBase"]
[SourceQuality "1"]
[TimeControl "40/6600+30:3000+30"]

1. e4 {[%emt 0:09:32]} e5 {[%emt 0:09:37]} 2. f4 {[%emt 0:00:05]} d5 {[%emt 0:00:07]} 3. exd5 {[%emt 0:00:10]} exf4 {[%emt 0:00:07]} 4. Nf3 {[%emt 0:00:11]} Nf6 {[%emt 0:00:20]} 5. Bc4 {[%emt 0:01:40]} Bd6 {[%emt 0:07:27]} 6. O-O {[%emt 0:02:43]} O-O {[%emt 0:00:32]} 7. d4 {[%emt 0:01:47]} Nbd7 {[%emt 0:02:38]} 8. Nc3 {[%emt 0:02:11]} Nb6 {[%emt 0:05:02]} 9. Bb3 {[%emt 0:01:23]} Re8 {[%emt 0:08:25]} 10. Ne5 {[%emt 0:11:28]} Bxe5 {[%emt 0:06:27]} 11. dxe5 {[%emt 0:00:15]} Rxe5 {[%emt 0:00:53]} 12. Bxf4 {[%emt 0:01:11]} Rf5 {[%emt 0:06:23]} 13. g4 {[%emt 0:09:07]} Nxg4 {[%emt 0:14:18]} 14. Qxg4 {[%emt 0:00:21]} Rxd5 {[%emt 0:01:53]} 15. Qg3 {[%emt 0:03:50]} Rf5 {[%emt 0:12:30]} 16. Rad1 {[%emt 0:05:12]} Qe7 {[%emt 0:03:41]} 17. Rfe1 {[%emt 0:07:47]} Be6 {[%emt 0:03:10]} 18. Ne4 {[%emt 0:08:01]} Bxb3 {[%emt 0:08:23]} 19. axb3 {[%emt 0:00:15]} c6 {[%emt 0:06:35]} 20. Nd6 {[%emt 0:02:03]} Qf6 {[%emt 0:01:33]} 21. Nxf5 {[%emt 0:00:54]} Qxf5 {[%emt 0:00:16]} 22. Qg5 {[%emt 0:02:03]} Qxc2 {[%emt 0:02:58]} 23. Rd8+ {[%emt 0:00:40]} Rxd8 {[%emt 0:00:10]} 24. Qxd8# {[%emt 0:00:07]} 1-0